Cogmind - Beta 13 @@@ ROGUE MODE // 2024.04.21 @ 15:19:25 Player: Gabe+Kate4EVR Result: Destroyed by G-34 Mercenary with Small Laser Performance ------------- Evolutions (0) 0 Regions Visited (3) 600 Robots Destroyed (6) 30 Value Destroyed (120) 120 Prototype IDs (0) 0 Alien Tech Used (0) 0 Bonus (0) 0 TOTAL SCORE: 750 Bonus ------- None Cogmind --------- Core Integrity 0/250 Matter 88/300 Energy 125/125 System Corruption 0% Temperature Cool (6) Movement Core (100) Ox1 Location -9/Recycling Parts ------- > --- POWER (1) -------- Light Ion Engine > --- PROPULSION (2) --- (None) > --- UTILITY (2) ------ Scrap Engine > --- WEAPON (2) ------- (None) > --- INVENTORY (5) ---- High-capacity Battery (250) Peak State ------------ > --- POWER ------------ Light Ion Engine > --- PROPULSION ------- Aluminum Leg Aluminum Leg > --- UTILITY ---------- Scrap Engine > --- WEAPON ----------- Medium Laser > --- INVENTORY -------- Aluminum Leg Aluminum Leg Aluminum Leg High-capacity Battery Subdweller Laser [Rating: 20] Favorites ----------- Power Light Ion Engine Engine Light Ion Engine Propulsion Aluminum Leg Leg Aluminum Leg Utility Small Storage Unit Device Scrap Engine Storage Small Storage Unit Hackware Makeshift Hacking Suite Weapon Medium Laser Energy Gun Medium Laser Ballistic Gun Assault Rifle Ballistic Cannon Light Cannon Build | -11 -10 -10 -9 ------- Run | Yrd Mat Sub Rec Slots Evolved . | . . . . Power . | . . . . Propulsion . | . . . . Utility . | . . . . Weapon . | . . . . Parts Attached 17 | 6 . 10 1 Power 3 | 1 . 2 . Engine 3 | 1 . 2 . Core . | . . . . Reactor . | . . . . Propulsion 6 | 2 . 4 . Treads . | . . . . Leg 6 | 2 . 4 . Wheel . | . . . . Hover . | . . . . Flight . | . . . . Utility 3 | 1 . 1 1 Device 1 | . . . 1 Storage 1 | 1 . . . Processor . | . . . . Hackware 1 | . . 1 . Protection . | . . . . Artifact . | . . . . Weapon 5 | 2 . 3 . Energy Gun 2 | 1 . 1 . Energy Cannon . | . . . . Ballistic Gun 2 | 1 . 1 . Ballistic Cannon 1 | . . 1 . Launcher . | . . . . Special Weapon . | . . . . Impact Weapon . | . . . . Slashing Weapon . | . . . . Piercing Weapon . | . . . . Special Melee Weapon . | . . . . Unidentified Prototypes . | . . . . Parts Lost 3 | . . 3 . Power 1 | . . 1 . Propulsion . | . . . . Utility . | . . . . Weapon 2 | . . 2 . Highest Loss Streak 3 | . . 3 . To Critical Strikes . | . . . . Average Slot Usage (%) 68 | . 85 84 41 Engine 14 | . 14 14 14 Leg 18 | . 28 28 1 Device 5 | . . . 13 Storage 8 | . 14 14 . Energy Gun 10 | . 14 2 11 Ballistic Gun 8 | . 14 12 . Ballistic Cannon 2 | . . 12 . Naked Turns . | . . . . Heaviest Build 17 | 12 12 17 10 Greatest Support 20 | 20 20 20 20 Greatest Overweight (x) 3 | 3 . . 1 Average Overweight (x) . | . . . . Largest Inventory Capacity 8 | 8 8 8 8 Average Capacity 6 | 7 8 8 5 Most Carried 8 | 4 8 8 6 Average Carried 5 | 3 7 7 2 Final Capacity 8 | 8 8 8 5 Final Carried 8 | 4 8 6 1 Scrap Engine Consumption 8 | . . . 8 Class Distribution -------------------- 100% | Mutant Dominant Class ---------------- Mutant | -10/Materials Mutant | -10/Subcaves Mutant | -9/Recycling Resources | -11 -10 -10 -9 ----------- Run | Yrd Mat Sub Rec Matter Collected 297 | 234 . 63 . Remotely . | . . . . Salvage Created 98 | . . 98 . Parts 14 | . . 14 . Haulers Intercepted . | . . . . Recyclers Shooed . | . . . . Parts Field Recycled . | . . . . Retrieved Matter . | . . . . Parts Self-Destructed 7 | . . 7 . Prevented . | . . . . Kills | -11 -10 -10 -9 ------- Run | Yrd Mat Sub Rec Combat Hostiles Destroyed 6 | . . 6 . Guns 4 | . . 4 . Cannons 2 | . . 2 . Classes Destroyed 2 | . . 2 . Swarmer 4 | . . 4 . Subdweller 2 | . . 2 . Best Kill Streak 4 | . . 4 . Combat Bots Only 4 | . . 4 . Max Kills in Single Turn 1 | . . 1 . Gunslinging . | . . . . Exploded . | . . . . Melee . | . . . . Uniques/NPCs Destroyed . | . . . . Combat | -11 -10 -10 -9 -------- Run | Yrd Mat Sub Rec Hostile Shots Fired 148 | . . 140 8 Missed 61 | . . 58 3 Damage Taken 909 | . . 856 53 Core 251 | . . 208 43 Absorbed by Shields . | . . . . Core Remaining (%) 100 | 100 . . . Volleys Fired 25 | . . 25 . Largest 2 | . . 2 . Hottest 70 | . . 70 . Shots Fired 50 | . . 50 . Gun 27 | . . 27 . Cannon 23 | . . 23 . Launcher . | . . . . Special . | . . . . Kinetic 48 | . . 48 . Thermal 2 | . . 2 . Explosive . | . . . . Electromagnetic . | . . . . Robot Hit Streak 16 | . . 16 . Robot Miss Streak 1 | . . 1 . Penetration Max . | . . . . Secondary Targets . | . . . . Shots Hit Robots 25 | . . 25 . Core Hits 8 | . . 8 . Critical Kills . | . . . . Critical Parts Destroyed . | . . . . Critical Strikes 1 | . . 1 . Destroy 1 | . . 1 . Melee Attacks . | . . . . Impact . | . . . . Slashing . | . . . . Piercing . | . . . . Sneak Attacks . | . . . . Combat Hostiles . | . . . . Follow-up Attacks . | . . . . Damage Inflicted 360 | . . 360 . Guns 201 | . . 201 . Cannons 159 | . . 159 . Explosions . | . . . . Melee . | . . . . Ramming . | . . . . Kinetic 360 | . . 360 . Thermal . | . . . . Explosive . | . . . . Electromagnetic . | . . . . Impact . | . . . . Slashing . | . . . . Piercing . | . . . . Highest Corruption . | . . . . Average Corruption . | . . . . Corruption Purged . | . . . . Corruption Blocked . | . . . . Overload Shots . | . . . . Overflow Damage . | . . . . Projectiles . | . . . . Explosions . | . . . . Melee . | . . . . Knockbacks 2 | . . 2 . Impact . | . . . . Kinetic 2 | . . 2 . Secondary . | . . . . Self-Inflicted Damage . | . . . . Shots . | . . . . Rammed . | . . . . Targets Rammed . | . . . . Kicked . | . . . . Crushed . | . . . . Highest Temperature 11 | . . 11 . Average Temperature 8 | . . 8 . Received Heat Transfer 390 | . . 360 30 Siege Activations . | . . . . Robots Corrupted . | . . . . Combat Hostiles . | . . . . Parts Fried . | . . . . Impact Corruptions . | . . . . Robots Melted . | . . . . Combat Hostiles . | . . . . Parts Melted . | . . . . Heat Transferred . | . . . . Parts Sabotaged . | . . . . Parts Stolen . | . . . . Parts Stripped . | . . . . Power Chain Reactions . | . . . . Alert | -11 -10 -10 -9 ------- Run | Yrd Mat Sub Rec Peak Influence 542 | . . . 542 Initial 542 | . . . 542 Average 236 | . . . 542 Maximum Alert Level 2 | . . . 2 Low Security (%) 56 | 100 100 . . Level 1 . | . . . . Level 2 43 | . . . 100 Level 3 . | . . . . Level 4 . | . . . . Level 5 . | . . . . High Security . | . . . . Max Security . | . . . . Squads Dispatched 1 | . 1 . . Investigation 1 | . 1 . . Extermination . | . . . . Reinforcement . | . . . . Assault . | . . . . Garrison . | . . . . Intercept . | . . . . Searches Triggered . | . . . . Construction Impeded . | . . . . Haulers Reinforced . | . . . . Active Scanning Responses . | . . . . Cargo Convoy Interrupts . | . . . . Stealth | -11 -10 -10 -9 --------- Run | Yrd Mat Sub Rec Distress Signals . | . . . . Communications Jammed . | . . . . Distress Signals . | . . . . Times Spotted 57 | . . 56 1 Peak Tracking Total 6 | . . 6 1 Tactical Retreats 5 | . . 5 . Traps | -11 -10 -10 -9 ------- Run | Yrd Mat Sub Rec Traps Triggered 4 | . 1 3 . Indirectly . | . . . . Trap Hack Attempts . | . . . . Triggered . | . . . . Disarmed . | . . . . Reprogrammed . | . . . . Reused . | . . . . Traps Extracted . | . . . . Installed . | . . . . Triggered . | . . . . Machines | -11 -10 -10 -9 ---------- Run | Yrd Mat Sub Rec Machines Disabled . | . . . . Max in Single Turn . | . . . . Machines Repaired . | . . . . Machines Dismantled . | . . . . Machines Sabotaged . | . . . . Overloaded Fab Kills . | . . . . Hacking | -11 -10 -10 -9 --------- Run | Yrd Mat Sub Rec Machines Accessed . | . . . . Terminals . | . . . . Fabricators . | . . . . Repair Stations . | . . . . Recycling Units . | . . . . Scanalyzers . | . . . . Garrison Access . | . . . . Total Hacks . | . . . . Successful . | . . . . Failed . | . . . . Catastrophic . | . . . . Database Lockouts . | . . . . Manual . | . . . . Terminals . | . . . . Fabricators . | . . . . Repair Stations . | . . . . Recycling Units . | . . . . Scanalyzers . | . . . . Garrison Access . | . . . . Terminal Hacks . | . . . . Fabricator Hacks . | . . . . Repair Station Hacks . | . . . . Recycling Unit Hacks . | . . . . Scanalyzer . | . . . . Garrison Access Hacks . | . . . . Unauthorized Hacks . | . . . . Terminals . | . . . . Fabricators . | . . . . Repair Stations . | . . . . Recycling Units . | . . . . Scanalyzers . | . . . . Garrison Access . | . . . . Data Cores Recovered . | . . . . Used . | . . . . Hacking Detections . | . . . . Full Trace Events . | . . . . Feedback Events . | . . . . Feedback Blocked . | . . . . Robot Schematics Acquired . | . . . . Robots Built . | . . . . Authchips . | . . . . Time . | . . . . Total Robot Build Rating . | . . . . Part Schematics Acquired . | . . . . Parts Built . | . . . . Authchips . | . . . . Time . | . . . . Total Part Build Rating . | . . . . Parts Repaired . | . . . . Time . | . . . . Parts Recycled . | . . . . Recycled Matter . | . . . . Retrieved Matter . | . . . . Retrieved Components . | . . . . Parts Scanalyzed . | . . . . Part Schematics Acquired . | . . . . Parts Damaged . | . . . . Bothacking | -11 -10 -10 -9 ------------ Run | Yrd Mat Sub Rec Used RIF Installer . | . . . . Robots Hacked . | . . . . Non-combat . | . . . . Combat . | . . . . Robot Hacks Applied . | . . . . Relay Couplers Released . | . . . . Fabnet Peak Effective % . | . . . . Robots Rewired 1 | . . . 1 Allies Hacked . | . . . . Hacks Repelled . | . . . . Allies | -11 -10 -10 -9 -------- Run | Yrd Mat Sub Rec Total Allies 1 | . . . 1 Largest Group . | . . . . Highest-Rated Group . | . . . . Highest-Rated Ally . | . . . . Total Orders . | . . . . Ally Attacks . | . . . . Total Damage . | . . . . Kills . | . . . . Allies Corrupted . | . . . . Allies Melted . | . . . . Intel | -11 -10 -10 -9 ------- Run | Yrd Mat Sub Rec Robot Analysis Total . | . . . . Derelict Logs Recovered . | . . . . Drone Launches . | . . . . Drone Recoveries . | . . . . Exploration | -11 -10 -10 -9 ------------- Run | Yrd Mat Sub Rec Turns Passed 944 | 97 319 206 322 Spaces Moved 315 | 68 76 92 79 Core 91 | 24 . . 67 Treads . | . . . . Legs 224 | 44 76 92 12 Wheels . | . . . . Hover . | . . . . Flight . | . . . . Fastest Speed 50 | 50 120 120 100 Average Speed 116 | 122 120 120 103 Slowest Speed 200 | 200 120 120 120 Overloaded Moves . | . . . . Propulsion Burnouts . | . . . . Robots Hopped . | . . . . Cave-ins Triggered . | . . . . Exploration Rate (%) 8 | 3 16 6 9 Regions Visited 3 Branch Regions 2 Pre-discovered Areas 1 | . . 1 . Known Exits Taken . | . . . . Unknown Exits Taken 3 | 1 1 1 . Scrap Searched 1 | . . 1 . Spaces Dug . | . . . . Terrain Destroyed . | . . . . Melee . | . . . . Projectile . | . . . . AOE . | . . . . Terrain Rammed . | . . . . Walls Destroyed . | . . . . Machines Disabled . | . . . . Actions | -11 -10 -10 -9 --------- Run | Yrd Mat Sub Rec Total 842 | 79 305 132 326 Wait 443 | 1 222 2 218 Move 312 | 67 75 91 79 Hop . | . . . . Pick Up 13 | 5 6 1 1 Fast Attach 7 | 5 . 1 1 Attach 3 | 1 . 2 . Detach 4 | . . . 4 Swap 7 | . . 7 . Drop 14 | . 2 3 9 Fire 25 | . . 25 . Melee . | . . . . Ram . | . . . . Kick . | . . . . Crush . | . . . . Escape Stasis . | . . . . Rewire 14 | . . . 14 Trap . | . . . . Miscellaneous . | . . . . Route ------- -11/Scrapyard -10/Materials -10/Subcaves -9/Recycling History --------- Turn | Location | Event 17 | -11/Scrapyard | Discovered new exit (range 16) 98 | -11/Scrapyard | Entered Materials 300 | -10/Materials | Build established: Mutant 410 | -10/Materials | Discovered new exit (range 5) 417 | -10/Materials | Entered Subcaves 532 | -10/Subcaves | Learned location of Zion (-7) 532 | -10/Subcaves | Met a Zionite searching for "candidates" 576 | -10/Subcaves | Core integrity fell below 50% 604 | -10/Subcaves | Discovered new exit (range 14) 621 | -10/Subcaves | Core integrity fell below 20% 623 | -10/Subcaves | Entered Recycling 634 | -9/Recycling | Found Scrap Engine 643 | -9/Recycling | Lost 3 parts (1p2w) 945 | -9/Recycling | Destroyed by G-34 Mercenary with Small Laser Last Messages --------------- 00640_ Dropped Aluminum Leg. 00641_ Scrap Engine consumes Aluminum Leg. 00641_ Dropped Aluminum Leg. 00642_ Scrap Engine consumes Aluminum Leg. 00649_ Dropped Aluminum Leg. 00650_ Scrap Engine consumes Aluminum Leg. 00730_ R-06 Scavenger collects Sml. Storage Unit. 00881_ Connecting with Terminal... 00881_ Current location identified: Recycling 00881_ Dropped Sub. Laser. 00882_ Scrap Engine consumes Sub. Laser. 00884_ Dropped Med. Laser. 00886_ Scrap Engine consumes Med. Laser. 00893_ Dropped Hcp. Battery. 00899_ Extracted 1 energy. 00900_ Acquired Hcp. Battery. 00928_ G-34 Mercenary springs to life. 00931_ Attempting to rewire R-06 Scavenger. 00933_ Attempting to rewire B-36 Bruiser. 00945_ B-36 Bruiser rewired. Map ----- +----------------------------------------------------+ | ?????????????????????????????????????????????????? | | ?????????????????????????????????????????????????? | | ?????????????????????????????????????????????????? | | ?????????????????????????????????????????????????? | | ?????????????????????????????????????????????????? | | ?????????????????????????????????????????????????? | | ?????????????????????????????????????????????????? | | ?????????????????????????????????????????????????? | | ?????????????????????????????????????????????????? | | ?????????????????????????????????????????????????? | | ?????????????????????????????????????????????????? | | ?????????????????????????????????????????????????? | | ?????????????????????????????????????????????????? | | ? ????????????????#????????????????????????????? | | # ???????????????? ????????????????????????????? | | # ???????????????? ????????????????????????????? | | # #??????????????? ????????????????????????????? | | # #??????????????# ###+######??????????????????? | | # #??????????????# # % #??????????????????? | | # #??????????????# # =g t #??????????????????? | | # #??????????????# # gl*k #??????????????????? | | # #??????????????# #Y / #??????????????????? | | # #??????????????# # ][ g #??????????????????? | | # #??????????????# #Yir #??????????????????? | | # ################ # Y b i=#??????????????????? | | # # + + @ gYa#??????????????????? | | # # """ """ ######## i #??????????????????? | | # # """ """ #??????##########??????????????????? | | # + """ """ #??????????????????????????????????? | | # # """ """ #??????????????????????????????????? | | # # """ """ #??????????????????????????????????? | | # # #??????????????????????????????????? | | # # "T" #??????????????????????????????????? | | # ###########??????????????????????????????????? | | #####????????????????????????????????????????????? | | ?????????????????????????????????????????????????? | | ?????????????????????????????????????????????????? | | ?????????????????????????????????????????????????? | | ?????????????????????????????????????????????????? | | ?????????????????????????????????????????????????? | | ?????????????????????????????????????????????????? | | ?????????????????????????????????????????????????? | | ?????????????????????????????????????????????????? | | ?????????????????????????????????????????????????? | | ?????????????????????????????????????????????????? | | ?????????????????????????????????????????????????? | | ?????????????????????????????????????????????????? | | | | | | | +----------------------------------------------------+ Best States ------------- Heat Dissipation 25 Energy Generation 15 Energy Capacity 200 Matter Stores 274 Matter Capacity 300 Sight Range 16 Terrain Scan Density 10 Evasion (%) 55 Offensive Hacking 11 Item Schematics ----------------- None Robot Schematics ------------------ None Fabricated ------------ Nothing Alien Tech Used ----------------- None Achievements -------------- None Challenges ------------ None Game ------ Seed CargoSuspensionCorpse Manual? 0 Play Time 00:05:36 Cumulative 110.1 hours Start 2024.04.21 @ 15:14:26 End 2024.04.21 @ 15:19:25 Sessions 1 Manual Loads 0 Difficulty Rogue Special Mode None Game No. 227 Rogue 227 Adventurer 0 Explorer 0 Win Type - Total 0 Types 0/0/0/0/0/0/0/0/0 Lore% 32 Gallery% 51 Achievement% 35 Wizard Run 0 Options --------- Layout 0 ASCII 0 Keyboard 1 Movement Numpad Keybinds 0 Fullscreen 2 Font 18/X11 Map View 76x50 Zoom Use 0% Tactical HUD 1 Map Filters NONE Filters NONE Steam 1 RUN: d6011d45-6769-4755-8c4e-441520186895